bitfinex-derivatives/quotes_SOLF0:USTF0_20250928
["timestamp","ask_amount","ask_price","bid_price","bid_amount"]
[1759082500851,7.3165543,205.21,205.19,15.66]
[1759082501149,7.39,205.22,205.19,15.66]
[1759082501351,7.3168366,205.21,205.19,23.23]
[1759082501551,7.39,205.22,205.19,23.23]
[1759082501752,7.3168366,205.21,205.19,23.23]
[1759082501951,7.39,205.22,205.19,23.23]
[1759082502249,7.3168366,205.21,205.19,23.23]
[1759082502452,7.39,205.22,205.19,23.23]
[1759082502751,7.31690962,205.21,205.19,23.23]
[1759082502945,7.39,205.22,205.19,23.23]
[1759082503142,7.31690775,205.21,205.19,23.23]
[1759082503342,7.39,205.22,205.19,23.23]
[1759082503555,7.31698244,205.21,205.19,23.23]
[1759082503755,10.82691147,205.2,205.19,15.66]
[1759082503955,14.707082,205.2,205.19,15.66]
[1759082514972,14.707082,205.2,205.17,7.9]
[1759082515176,7.317082,205.19,205.17,7.9]
[1759082515468,7.39,205.2,205.17,7.9]
[1759082515668,7.31782694,205.19,205.17,7.9]
[1759082515869,7.39,205.2,205.17,7.9]
[1759082516069,7.31782694,205.19,205.17,7.9]
[1759082516369,7.39,205.2,205.17,7.9]
[1759082516571,7.3196695,205.19,205.17,7.9]
[1759082516772,7.3196695,205.18,205.17,7.9]
[1759082520174,7.32017536,205.18,205.17,7.9]
[1759082520569,7.68,205.17,205.16,10.8]
[1759082520771,15.00017536,205.17,205.16,10.8]
[1759082521074,134.12017536,205.17,205.16,10.8]
[1759082521676,7.32017536,205.17,205.16,18.7]
[1759082521873,3.43832087,205.17,205.16,18.7]
[1759082522779,86.44,205.21,205.16,10.8]
[1759082523084,7.32453835,205.2,205.18,7.9]
[1759082523376,7.32453835,205.19,205.18,7.9]
[1759082525978,7.68,205.23,205.18,7.9]
[1759082526182,7.32115186,205.22,205.17,7.9]
[1759082526479,7.32115186,205.21,205.17,7.9]
[1759082526673,7.32115186,205.2,205.17,7.9]
[1759082526878,131.2636,205.24,205.17,7.9]
[1759082527079,7.32132392,205.23,205.17,7.9]
[1759082527374,15.00132392,205.22,205.18,7.9]
[1759082527582,7.32132392,205.21,205.18,7.9]
[1759082527881,7.32132392,205.2,205.18,7.9]
[1759082528084,123.5836,205.24,205.17,7.9]
[1759082528283,7.32133766,205.23,205.17,7.9]
[1759082528485,7.32133766,205.22,205.16,15.1851]
[1759082528680,7.32133766,205.21,205.16,15.1851]
[1759082528983,7.32133766,205.2,205.17,4.3849]
[1759082529183,119.18,205.24,205.18,7.9]
[1759082529480,7.32127458,205.23,205.18,7.9]
[1759082529785,7.68,205.29,205.2,7.9]
[1759082529984,7.3193544,205.28,205.2,7.9]
[1759082530176,7.3193544,205.27,205.22,7.9]
[1759082530483,7.3193544,205.26,205.21,4.3842]
[1759082530678,7.3193544,205.25,205.21,4.3842]
[1759082530874,7.68,205.29,205.22,7.9]
[1759082531078,7.31758227,205.28,205.22,7.9]
[1759082531279,7.31758227,205.27,205.21,4.3842]
[1759082531473,7.31758227,205.26,205.24,7.51]
[1759082531678,7.39,205.3,205.24,7.51]
[1759082531875,7.39,205.28,205.24,7.51]
[1759082532083,7.31557458,205.27,205.24,7.51]
[1759082532283,7.39,205.28,205.25,7.51]
[1759082532480,7.31348178,205.27,205.26,7.51]
[1759082532684,7.39,205.31,205.24,7.51]
[1759082532881,7.31326396,205.3,205.24,7.51]
[1759082533080,7.31326396,205.29,205.23,15.9638]
[1759082533381,7.31326396,205.28,205.23,15.9638]
[1759082533585,7.39,205.31,205.24,7.51]
[1759082533885,7.31096043,205.3,205.24,7.51]
[1759082534085,7.31096043,205.29,205.25,7.51]
[1759082534286,7.31096043,205.28,205.24,7.51]
[1759082534487,7.39,205.31,205.25,7.51]
[1759082534787,7.30897318,205.3,205.24,7.51]
[1759082534987,7.30897318,205.29,205.23,15.9638]
[1759082535186,7.30897318,205.28,205.23,15.9638]
[1759082535389,7.39,205.31,205.24,7.51]
[1759082535594,7.30713682,205.3,205.24,7.51]
[1759082535790,7.30713682,205.29,205.24,7.51]
[1759082535995,7.30713682,205.28,205.23,15.9638]
[1759082536288,7.39,205.31,205.24,7.51]
[1759082536487,7.3054883,205.3,205.24,7.51]
[1759082536691,7.3054883,205.29,205.23,15.9638]
[1759082536892,7.3054883,205.28,205.23,15.9638]
[1759082537190,7.39,205.3,205.23,23.4738]
[1759082537385,7.30410223,205.29,205.23,23.4738]
[1759082537584,7.39,205.3,205.23,23.4738]
[1759082537787,7.30410223,205.29,205.23,23.4738]
[1759082537988,7.39,205.3,205.24,7.51]
[1759082538189,7.30410223,205.29,205.23,15.9638]
[1759082538392,7.39,205.3,205.25,4.3833]
[1759082538588,7.30283545,205.29,205.26,7.51]
[1759082538793,7.39,205.33,205.26,7.51]
[1759082538995,7.30283545,205.32,205.26,7.51]
[1759082539195,7.30283545,205.31,205.27,4.3828]
[1759082539385,7.39,205.37,205.28,7.51]
[1759082539586,7.29934279,205.36,205.28,7.51]
[1759082539792,7.29934279,205.35,205.28,7.51]
[1759082539992,7.29934279,205.34,205.28,7.51]
[1759082540194,7.39,205.37,205.28,7.51]
[1759082540398,7.29533743,205.36,205.28,7.51]
[1759082540695,7.29533743,205.35,205.28,7.51]
[1759082540895,7.29533743,205.34,205.28,7.51]
[1759082541092,7.39,205.37,205.28,7.51]
[1759082541288,7.29513301,205.36,205.28,7.51]
[1759082541493,7.29513301,205.35,205.28,7.51]
[1759082541690,7.39,205.35,205.28,7.51]
[1759082541888,7.29228646,205.34,205.28,7.51]
[1759082542091,7.39,205.35,205.28,7.51]
[1759082542291,7.29247076,205.34,205.28,7.51]
[1759082542491,7.39,205.35,205.28,7.51]
[1759082542697,7.29028147,205.34,205.28,7.51]
[1759082542903,7.39,205.35,205.28,7.51]
[1759082543088,7.29028147,205.34,205.28,7.51]
[1759082543286,7.39,205.35,205.28,7.51]
[1759082543497,7.28794051,205.34,205.28,7.51]
[1759082543699,7.39,205.35,205.28,7.51]
[1759082543895,7.28794051,205.34,205.28,7.51]
[1759082544094,7.39,205.35,205.28,7.51]
[1759082545192,7.39,205.35,205.28,11.8927]
[1759082545596,0.46280818,205.38,205.29,8.06]
[1759082545793,4.32039988,205.38,205.29,2.65941293]
[1759082545993,4.32039988,205.38,205.3,8.06]
[1759082546198,0.46280818,205.38,205.3,8.06]
[1759082547597,0.46280818,205.38,205.34,8.06]
[1759082547796,0.46280818,205.38,205.33,4.3815]
[1759082548697,3.85377515,205.41,205.34,8.06]
[1759082548897,7.78,205.39,205.33,4.3815]
[1759082550591,7.78,205.39,205.32,8.06]
[1759082551806,7.78,205.37,205.29,8.06]
[1759082552099,1.69963281,205.35,205.29,8.06]
[1759082552300,7.78,205.34,205.3,12.12]
[1759082552806,6.08103281,205.35,205.3,12.12]
[1759082553096,7.78,205.34,205.3,12.12]
[1759082553499,6.08103281,205.35,205.3,12.12]
[1759082553696,7.78,205.34,205.3,12.12]
[1759082553897,6.08103281,205.35,205.3,12.12]
[1759082554098,7.78,205.34,205.3,12.12]
[1759082554502,6.08103281,205.35,205.3,12.12]
[1759082554802,7.78,205.34,205.3,12.12]
[1759082555302,6.08103281,205.35,205.3,12.12]
[1759082555502,7.78,205.34,205.3,12.12]
[1759082555697,7.78,205.32,205.3,12.12]
[1759082556307,4.3817,205.33,205.3,12.12]
[1759082556598,7.78,205.32,205.3,12.12]
[1759082557199,75.9543,205.29,205.23,11.58]
[1759082557404,9.47963281,205.24,205.23,11.58]
[1759082557800,127.44,205.24,205.23,11.58]
[1759082558002,129.13963281,205.24,205.23,11.58]
[1759082558196,9.47963281,205.24,205.23,11.58]
[1759082559008,68.1716,205.3,205.23,11.58]
[1759082559009,7.78,205.28,205.24,8.06]
[1759082559507,7.78,205.28,205.25,8.06]
[1759082560403,9.47963281,205.33,205.24,8.06]
[1759082560602,129.21963281,205.33,205.24,8.06]
[1759082561006,119.82,205.32,205.24,8.06]
[1759082561307,1.69963281,205.3,205.24,8.06]
[1759082563903,119.8,205.31,205.24,8.06]
[1759082564411,1.69963281,205.32,205.24,4.3836]
[1759082564602,121.43963281,205.32,205.25,8.06]
[1759082564900,1.69963281,205.3,205.23,11.58]
[1759082565105,1.69963281,205.3,205.24,8.06]
[1759082567309,1.69963281,205.3,205.24,12.4436]
[1759082568504,1.69963281,205.3,205.24,8.06]
[1759082571610,1.69963281,205.3,205.26,8.06]
[1759082572112,1.69963281,205.3,205.25,11.72]
[1759082572306,3.84730405,205.31,205.26,8.06]
[1759082572509,121.27963281,205.32,205.26,8.06]
[1759082572702,7.26904383,205.31,205.27,8.06]
[1759082572908,1.69963281,205.32,205.26,8.06]
[1759082573107,11.19814647,205.31,205.27,8.06]
[1759082573310,7.78,205.31,205.27,8.06]
[1759082573703,121.25963281,205.32,205.27,8.06]
[1759082573910,7.71,205.3,205.27,8.06]
[1759082574113,9.40963281,205.3,205.27,8.06]
[1759082574415,7.27392038,205.29,205.27,8.06]
[1759082574612,9.40963281,205.3,205.27,8.06]
[1759082577813,7.71,205.29,205.25,19.78]
[1759082578017,1.69963281,205.28,205.25,11.72]
[1759082578218,7.71,205.27,205.25,11.72]
[1759082579012,119.56,205.28,205.25,19.78]
[1759082579218,7.27642995,205.27,205.25,19.78]
[1759082579413,119.56,205.28,205.25,19.78]
[1759082579615,7.27609696,205.27,205.25,19.78]
[1759082579814,127.27,205.28,205.25,19.78]
[1759082580021,14.98609993,205.27,205.25,11.72]
[1759082580318,7.71,205.27,205.25,11.72]
[1759082580708,119.56,205.28,205.25,11.72]
[1759082580914,7.27584866,205.27,205.25,11.72]
[1759082581126,9.40963281,205.36,205.26,8.06]
[1759082581322,7.27456077,205.35,205.26,8.06]
[1759082581513,7.27456077,205.34,205.26,8.06]
[1759082581821,7.27456077,205.33,205.26,8.06]
[1759082582121,7.27456077,205.32,205.26,8.06]
[1759082582418,63.76,205.35,205.26,8.06]
[1759082582618,7.27431507,205.34,205.26,4.383]
[1759082582809,7.27431507,205.33,205.27,8.06]
[1759082583011,63.76,205.35,205.27,8.06]
[1759082583217,7.26584629,205.34,205.27,8.06]
[1759082583416,3.85346873,205.33,205.27,8.06]
[1759082583608,63.76,205.35,205.27,8.06]
[1759082583918,7.27455437,205.34,205.27,8.06]
[1759082584118,3.86258725,205.33,205.27,8.06]
[1759082584421,9.40963281,205.36,205.28,8.06]
[1759082584718,7.27444029,205.35,205.28,8.06]
[1759082584914,7.27444029,205.34,205.28,8.06]
[1759082585115,63.12963281,205.36,205.28,8.06]
[1759082585318,7.27439575,205.35,205.28,8.06]
[1759082585515,7.27439575,205.34,205.28,8.06]
[1759082585711,9.40963281,205.36,205.28,8.06]
[1759082585914,7.71,205.32,205.25,11.72]
[1759082586116,8.97433715,205.31,205.25,11.72]
[1759082586316,1.69963281,205.31,205.25,11.72]
[1759082586517,3.41283194,205.3,205.25,11.72]
[1759082586716,1.69963281,205.31,205.25,11.72]
[1759082587027,11.12298311,205.3,205.25,19.78]
[1759082587212,7.71,205.3,205.25,11.72]
[1759082587525,9.40963281,205.31,205.25,19.78]
[1759082587822,7.71,205.29,205.25,19.78]
[1759082588422,7.71,205.35,205.26,8.06]
[1759082588623,7.27575038,205.34,205.26,8.06]
[1759082588926,7.71,205.35,205.26,8.06]
[1759082589114,7.27474278,205.34,205.26,8.06]
[1759082589314,7.71,205.35,205.26,8.06]
[1759082589619,3.86265083,205.34,205.28,8.06]
[1759082589823,4.3809,205.37,205.28,8.06]
[1759082590124,73.44415157,205.42,205.33,1.69963281]
[1759082590125,7.71,205.41,205.33,1.69963281]
[1759082590324,7.27256239,205.4,205.34,8.06]
[1759082590528,7.71,205.41,205.34,8.06]
[1759082590819,7.27043302,205.4,205.34,8.06]
[1759082591024,7.71,205.41,205.34,8.06]
[1759082591225,7.26956798,205.4,205.34,8.06]
[1759082591428,7.71,205.41,205.34,8.06]
[1759082591719,7.26861771,205.4,205.34,8.06]
[1759082591921,7.71,205.41,205.34,8.06]
[1759082592121,3.85935979,205.4,205.34,8.06]
[1759082592424,7.71,205.41,205.34,8.06]
[1759082594329,4.3795,205.43,205.36,7.49]
[1759082594625,8.02,205.45,205.38,7.49]
[1759082594814,7.26333021,205.44,205.38,7.49]
[1759082595018,7.26333021,205.44,205.37,1.69963281]
[1759082595019,7.26333021,205.43,205.37,9.18963281]
[1759082595224,8.02,205.45,205.37,9.18963281]
[1759082595424,7.26067738,205.44,205.37,9.18963281]
[1759082595625,8.02,205.45,205.37,9.18963281]
[1759082595820,7.26067738,205.44,205.37,9.18963281]
[1759082596020,8.02,205.45,205.37,9.18963281]
[1759082596221,7.25936176,205.44,205.37,9.18963281]
[1759082596429,12.3993,205.45,205.38,16.39]
[1759082596619,7.25807034,205.44,205.38,16.39]
[1759082596819,12.3993,205.45,205.38,16.39]
[1759082597020,13.33720407,205.44,205.38,16.39]
[1759082597223,8.02,205.42,205.38,16.39]
[1759082597422,1.69963281,205.44,205.38,23.88]
[1759082597725,3.40335263,205.43,205.38,23.88]
[1759082597925,8.02,205.43,205.38,23.88]
[1759082598427,1.69963281,205.44,205.38,23.88]
[1759082598626,8.02,205.42,205.38,23.88]
[1759082598821,9.71963281,205.42,205.38,16.39]
[1759082599028,8.02,205.41,205.38,16.39]
[1759082599321,1.69963281,205.42,205.38,16.39]
[1759082599717,8.02,205.41,205.38,16.39]
[1759082599924,6.07953281,205.42,205.38,16.39]
[1759082600426,8.02,205.41,205.38,16.39]
[1759082600617,6.07953281,205.42,205.38,16.39]
[1759082601128,8.02,205.41,205.38,16.39]
[1759082602930,8.02,205.41,205.38,23.88]
[1759082603928,7.37,205.43,205.38,16.39]
[1759082604130,11.7501,205.41,205.38,16.39]
[1759082605829,7.37,205.4,205.38,16.39]
[1759082606521,7.37,205.39,205.38,16.39]
[1759082607620,126.95,205.39,205.38,16.39]
[1759082607820,5.31185157,205.48,205.38,16.39]
[1759082607821,7.37,205.46,205.39,7.25]
[1759082608228,8.9477275,205.45,205.39,7.25]
[1759082608428,7.37,205.42,205.38,16.39]
[1759082608629,7.37,205.41,205.38,16.39]
[1759082609231,86.94,205.42,205.38,23.64]
[1759082609735,7.37,205.42,205.38,23.64]
[1759082613528,120.06,205.43,205.39,7.25]
[1759082613725,120.06,205.43,205.38,16.39]
[1759082614130,120.06,205.43,205.4,7.25]
[1759082614836,127.43,205.43,205.4,7.25]
[1759082615038,7.37,205.43,205.4,7.25]
[1759082615238,7.37,205.43,205.38,16.39]
[1759082615239,119.92,205.43,205.41,7.25]
[1759082615939,119.96,205.44,205.41,7.25]
[1759082617239,119.94,205.44,205.38,7.25]
[1759082618238,127.31,205.44,205.4,7.25]
[1759082618738,7.37,205.43,205.4,7.25]
[1759082618943,7.37,205.43,205.39,19.98]
[1759082619537,7.37,205.43,205.4,7.25]
[1759082620238,7.37,205.42,205.39,12.73]
[1759082620538,112.2197,205.43,205.39,12.73]
[1759082620730,4.3797,205.43,205.39,12.73]
[1759082620930,124.2797,205.43,205.39,12.73]
[1759082621339,7.37,205.42,205.39,12.73]
[1759082621542,7.37,205.42,205.39,19.98]
[1759082624046,7.37,205.4,205.39,12.12534843]
[1759082624231,11.22475063,205.4,205.39,12.12534843]
[1759082624434,7.37,205.39,205.37,13.43]
[1759082625140,4.3805,205.39,205.37,13.43]
[1759082625341,7.37,205.38,205.37,13.43]
[1759082625740,124.2205,205.39,205.37,13.43]
[1759082625934,124.2205,205.39,205.37,20.68]
[1759082626243,11.7505,205.39,205.37,13.43]
[1759082628435,4.3805,205.39,205.37,13.43]
[1759082628639,11.22864403,205.38,205.37,13.43]
[1759082628937,3.85864403,205.38,205.37,20.68]
[1759082629139,7.37,205.48,205.38,7.25]
[1759082629335,127.16990057,205.47,205.38,7.25]
[1759082629536,7.26990057,205.46,205.38,7.25]
[1759082629846,7.26990057,205.45,205.38,7.25]
[1759082630143,7.26990057,205.44,205.38,7.25]
[1759082630338,7.37,205.48,205.38,7.25]
[1759082630534,7.26961612,205.47,205.38,7.25]
[1759082630842,7.26961612,205.46,205.38,7.25]
[1759082631042,7.26961612,205.45,205.38,7.25]
[1759082631343,7.37,205.48,205.38,7.25]
[1759082631642,7.270733,205.47,205.39,4.3803]
[1759082631842,7.270733,205.46,205.4,7.25]
[1759082632043,11.7486,205.48,205.4,7.25]
[1759082632340,7.27213359,205.47,205.4,7.25]
[1759082632548,7.27213359,205.46,205.4,7.25]
[1759082632737,3.85872329,205.45,205.4,7.25]
[1759082632944,4.3779,205.51,205.41,7.25]
[1759082633144,7.27355067,205.5,205.41,7.25]
[1759082633340,7.27355067,205.49,205.42,7.25]
[1759082633541,7.27355067,205.48,205.42,7.25]
[1759082633739,7.27355067,205.47,205.41,7.03480511]
[1759082633943,7.27355067,205.46,205.42,8.0]
[1759082634246,4.3782,205.5,205.42,8.0]
[1759082634442,14.98776863,205.49,205.42,8.0]
[1759082634640,7.27776863,205.48,205.42,8.0]
[1759082634846,7.71,205.46,205.42,8.0]
[1759082635046,7.27776863,205.45,205.42,8.0]
[1759082635345,7.27776863,205.44,205.42,8.0]
[1759082635648,7.71,205.46,205.42,8.0]
[1759082635837,14.98836776,205.45,205.42,8.0]
[1759082636041,7.27836776,205.44,205.42,8.0]
[1759082636242,3.86268083,205.43,205.42,8.0]
[1759082636437,3.86268083,205.44,205.42,8.0]
[1759082636645,7.27836914,205.43,205.37,8.0]
[1759082636949,7.71,205.49,205.37,8.0]
[1759082637154,7.27797072,205.48,205.38,14.14]
[1759082637351,7.27797072,205.47,205.39,8.0]
[1759082637546,7.27797072,205.46,205.39,8.0]
[1759082637737,7.27797072,205.45,205.39,8.0]
[1759082637941,7.27797072,205.44,205.38,14.14]
[1759082638141,127.99,205.49,205.39,8.0]
[1759082638350,7.27714723,205.48,205.39,8.0]
[1759082638548,7.27714723,205.47,205.39,8.0]
[1759082638751,7.27714723,205.46,205.39,12.3802]
[1759082638950,7.27714723,205.45,205.39,12.3802]
[1759082639147,3.86214702,205.44,205.39,4.3802]
[1759082639340,4.3786,205.48,205.4,8.0]
[1759082639549,7.71,205.46,205.4,8.0]
[1759082639747,11.65505563,205.47,205.4,8.0]
[1759082639748,7.71,205.44,205.4,8.0]
[1759082640443,7.71,205.44,205.38,14.14]
[1759082640444,7.71,205.42,205.38,22.14]
[1759082640643,7.27739998,205.41,205.39,8.0]
[1759082640845,7.71,205.46,205.39,8.0]
[1759082641041,7.27723955,205.45,205.39,8.0]
[1759082641246,14.98723955,205.44,205.39,8.0]
[1759082641449,14.98723955,205.43,205.39,8.0]
[1759082641755,7.27723955,205.42,205.39,8.0]
[1759082642051,7.71,205.43,205.39,8.0]
[1759082642246,7.27730705,205.42,205.39,8.0]
[1759082642448,7.71,205.43,205.39,8.0]
[1759082642656,7.27730415,205.42,205.39,8.0]
[1759082642854,7.71,205.43,205.39,8.0]
[1759082643156,7.28064197,205.42,205.39,8.0]
[1759082643348,3.90000809,205.41,205.39,8.0]
[1759082643550,7.71,205.43,205.38,14.14]
[1759082643750,15.02890098,205.42,205.38,22.14]
[1759082643943,7.31890098,205.41,205.38,22.14]
[1759082644144,3.90004156,205.4,205.38,22.14]
[1759082644443,7.71,205.42,205.38,22.14]
[1759082644648,7.31907256,205.41,205.38,22.14]
[1759082644843,3.90024736,205.4,205.38,22.14]
[1759082645055,7.71,205.42,205.38,22.14]
[1759082645251,7.31917488,205.41,205.38,22.14]
[1759082645557,3.90024736,205.4,205.38,14.14]
[1759082645756,7.71,205.42,205.38,22.14]
[1759082645949,15.02927001,205.41,205.38,14.14]
[1759082646152,3.90034157,205.4,205.38,14.14]
[1759082646452,4.3799,205.42,205.38,14.14]
[1759082646652,7.31969035,205.41,205.38,14.14]
[1759082646956,7.71,205.39,205.38,14.14]
[1759082647157,3.90052353,205.39,205.38,14.14]
[1759082647553,11.61052353,205.39,205.38,14.14]
[1759082647757,15.02988719,205.39,205.38,14.14]
[1759082647957,7.31988719,205.39,205.38,22.14]
[1759082648158,7.31988719,205.39,205.38,14.14]
[1759082654471,3.90052353,205.39,205.38,14.14]
[1759082655259,7.31982534,205.39,205.38,14.14]
[1759082655967,7.75090498,205.53,205.39,2.34]
[1759082656170,7.75090498,205.53,205.4,2.34]
[1759082657575,4.3775,205.52,205.42,4.3795]
[1759082657775,4.3775,205.52,205.43,2.34]
[1759082658274,7.33,205.51,205.43,2.34]
[1759082658867,4.3783,205.49,205.43,2.34]
[1759082659377,11.7083,205.49,205.43,2.34]
[1759082661471,68.51500498,205.53,205.39,2.34]
[1759082661472,7.33,205.46,205.39,2.34]
[1759082662774,11.709,205.46,205.39,2.34]
[1759082665578,11.709,205.46,205.39,6.7202]
[1759082666575,11.9083,205.49,205.4,4.3799]
[1759082666872,11.9083,205.49,205.41,2.33]
[1759082667975,7.2402296,205.48,205.41,2.33]
[1759082668180,7.2402296,205.47,205.41,2.33]
[1759082668475,11.9083,205.49,205.41,2.33]
[1759082668778,7.24002466,205.48,205.41,2.33]
[1759082668981,7.24002466,205.47,205.41,2.33]
[1759082669278,11.9083,205.49,205.41,2.33]
[1759082669480,7.240172,205.48,205.41,2.33]
[1759082669680,7.240172,205.47,205.41,2.33]
[1759082669880,11.9083,205.49,205.41,2.33]
[1759082670074,7.240172,205.48,205.41,2.33]
[1759082670276,7.53,205.46,205.39,10.89]
[1759082672578,8.94168027,205.45,205.39,10.89]
[1759082672883,1.69847116,205.42,205.39,10.89]
[1759082673086,7.53,205.4,205.39,10.89]
[1759082674280,14.76072661,205.4,205.39,10.89]
[1759082675785,14.75984703,205.4,205.39,10.28603597]
[1759082676287,7.53,205.39,205.38,14.14]
[1759082676485,16.45831819,205.39,205.38,14.14]
[1759082676784,20.83861819,205.39,205.38,14.14]
[1759082677586,19.14014703,205.39,205.38,14.14]
[1759082677786,20.83861819,205.39,205.38,14.14]
[1759082682387,140.79861819,205.39,205.3,2.33]
[1759082682588,7.22984703,205.38,205.3,2.33]
[1759082682782,133.54877116,205.39,205.3,2.33]
[1759082682989,7.22401272,205.38,205.3,2.33]
[1759082683183,133.54877116,205.39,205.3,2.33]
[1759082683486,3.39603599,205.38,205.3,2.33]
[1759082683687,133.52877116,205.39,205.3,2.33]
[1759082683886,3.39603507,205.38,205.3,2.33]
[1759082684092,133.52877116,205.39,205.3,2.33]
[1759082684688,133.48877116,205.39,205.3,2.33]
[1759082685183,4.3807,205.38,205.3,2.33]
[1759082685387,4.3807,205.38,205.31,15.94]
[1759082687997,7.53,205.37,205.31,15.94]
[1759082688997,11.9109,205.37,205.31,15.94]
[1759082689299,7.53,205.37,205.31,15.94]
[1759082690600,4.3811,205.36,205.31,15.94]
[1759082690899,7.53,205.35,205.31,18.27]
[1759082691199,7.53,205.35,205.31,15.94]
[1759082691499,7.53,205.35,205.32,2.33]
[1759082692393,7.53,205.35,205.31,15.94]
[1759082692698,7.53,205.35,205.32,2.33]
[1759082693100,7.53,205.35,205.31,15.94]
[1759082693397,7.53,205.35,205.32,2.33]
[1759082695400,7.78,205.38,205.32,2.33]
[1759082696700,12.1606,205.38,205.32,2.33]
[1759082699899,4.3809,205.37,205.32,2.33]
[1759082700094,4.3809,205.37,205.31,15.94]
[1759082700301,7.78,205.35,205.31,15.94]
[1759082700795,1.69847116,205.36,205.31,15.94]
[1759082701002,7.78,205.33,205.31,15.94]
[1759082701203,7.78,205.32,205.31,15.94]
[1759082701398,119.64,205.33,205.31,15.94]
[1759082701598,7.78,205.32,205.31,15.94]
[1759082702005,124.0217,205.33,205.31,15.94]
[1759082702206,7.78,205.32,205.31,15.94]
[1759082702505,127.42,205.32,205.31,15.94]
[1759082702898,7.78,205.32,205.31,15.94]
[1759082703094,1.69847116,205.39,205.32,2.32]
[1759082703295,1.69847116,205.39,205.31,15.94]
[1759082703296,7.78,205.36,205.31,15.94]
[1759082703495,6.07937116,205.37,205.31,15.94]
[1759082703701,120.0,205.36,205.31,15.94]
[1759082704003,7.78,205.35,205.31,15.94]
[1759082704200,120.0,205.36,205.31,15.94]
[1759082704400,7.78,205.35,205.31,15.94]
[1759082704599,124.3811,205.36,205.31,15.94]
[1759082704799,7.78,205.35,205.31,15.94]
[1759082705303,124.3811,205.36,205.31,15.94]
[1759082705503,126.07957116,205.36,205.31,15.94]
[1759082705805,7.78,205.35,205.31,15.94]
[1759082706002,126.03957116,205.36,205.31,15.94]
[1759082706203,7.78,205.35,205.31,15.94]
[1759082706403,7.78,205.34,205.31,18.26]
[1759082707698,125.99957116,205.36,205.31,15.94]
[1759082707898,7.78,205.35,205.31,15.94]
[1759082708295,125.99957116,205.36,205.31,15.94]
[1759082708602,7.78,205.35,205.31,15.94]
[1759082708800,1.69847116,205.33,205.31,15.94]
[1759082709001,7.78,205.32,205.31,15.94]
[1759082710406,127.66,205.32,205.31,15.94]
[1759082710706,134.86953284,205.32,205.31,15.94]
[1759082711704,134.55953284,205.32,205.31,15.94]
[1759082712007,134.51953284,205.32,205.31,15.94]
[1759082712205,134.57953284,205.32,205.31,15.94]
[1759082713109,134.58031768,205.32,205.31,15.94]
[1759082713506,14.68031768,205.32,205.31,15.94]
[1759082713707,134.54031768,205.32,205.31,15.94]
[1759082714109,14.68031768,205.32,205.31,15.94]
[1759082714413,134.52031768,205.32,205.31,15.94]